Workbook

Sheet Lumbar & Thoracic
C1: CHIROPRACTIC EXPOSURE CHART
A3: LUMBAR SPINE | C3: Small | G3: Medium | K3: Large
A4: Body Part | B4: Grid | C4: mAs | D4: CM | E4: kVp | G4: mAs | H4: CM | I4: kVp | K4: mAs | L4: CM | M4: kVp
A5: AP Lumbar | B5: Y | C5: =($G$5*0.5) -> 15 | D5: 13-14 | E5: =$I$5-6 -> 74 | G5: 30 | H5: 19-20 | I5: 80 | K5: =($G$5*2) -> 60 | L5: 25-26 | M5: =$I$5+6 -> 86
B6: 44" | C6: =(G$5*0.75) -> 22.5 | D6: 15-16 | E6: =$I$5-6 -> 74 | G6: =PRODUCT($G$5,1.5) -> 45 | H6: 21-22 | I6: =$I$5 -> 80 | K6: =($G$5*3) -> 90 | L6: 27-28 | M6: =$I$5+6 -> 86
C7: =$G$5 -> 30 | D7: 17-18 | E7: =$I$5-6 -> 74 | G7: =PRODUCT($G$5,2) -> 60 | H7: 23-24 | I7: =$I$5 -> 80 | K7: =($G$5*4) -> 120 | L7: 29-30 | M7: =$I$5+6 -> 86
K8: =($K$7*(1.5)) -> 180 | L8: 31-32 | M8: 84 | N8: - | O8: =$I$5+12 -> 92
K9: =($K$7*(2)) -> 240 | L9: 33-34 | M9: 84 | N9: - | O9: =$I$5+12 -> 92
B11: Grid | C11: mAs | D11: CM | E11: kVp | G11: mAs | H11: CM | I11: kVp | K11: mAs | L11: CM | M11: kVp
A12: OBLIQUE Lumbar | B12: Y | C12: Increase AP | E12: same as AP | G12: Increase AP | I12: same as AP | K12: Increase AP | M12: same as AP
B13: 44" | C13: by 50% | G13: by 50% | K13: by 50%
C15: Small | G15: Medium | K15: Large
B16: Grid | C16: mAs | D16: CM | E16: kVp | G16: mAs | H16: CM | I16: kVp | K16: mAs | L16: CM | M16: kVp
A17: LATERAL Lumbar | B17: Y | C17: =($G$17*0.5) -> 40 | D17: 22-23 | E17: =$I$17-6 -> 84 | G17: 80 | H17: 28-29 | I17: 90 | K17: =PRODUCT($G$17,2) -> 160 | L17: 34-35 | M17: =$I$17+6 -> 96
B18: 44" | C18: =(G$17*0.75) -> 60 | D18: 24-25 | E18: =$I$17-6 -> 84 | G18: =PRODUCT($G$17,1.5) -> 120 | H18: 30-31 | I18: =$I$17 -> 90 | K18: =($G$17*3) -> 240 | L18: 36-37 | M18: =$I$17+6 -> 96
C19: =$G$17 -> 80 | D19: 26-27 | E19: =$I$17-6 -> 84 | G19: =PRODUCT($G$17,2) -> 160 | H19: 32-33 | I19: =$I$17 -> 90 | K19: =($G$17*4) -> 320 | L19: 37-39 | M19: =$I$17+6 -> 96 | N19: - | O19: =$I$17+14 -> 104
K20: =($K$19*1.5) -> 480 | L20: 40-41 | M20: =$I$17+6 -> 96 | N20: - | O20: =$I$17+14 -> 104
B22: Grid | C22: mAs | D22: CM | E22: kVp | G22: mAs | H22: CM | I22: kVp | K22: mAs | L22: CM | M22: kVp
A23: L5-S1 LATERAL/ | B23: Y | C23: Increase LAT | E23: same as LAT | G23: Increase LAT | I23: same as LAT | K23: Increase LAT | M23: same as LAT
A24: LATERAL SACRUM | B24: 44" | C24: by 50% | G24: by 50% | K24: by 50%
A26: THORACIC SPINE | C26: Small | G26: Medium | K26: Large
A27: Body Part | B27: Grid | C27: mAs | D27: CM | E27: kVp | G27: mAs | H27: CM | I27: kVp | K27: mAs | L27: CM | M27: kVp
A28: AP Thoracic | B28: Y | C28: =($G$28*0.5) -> 5 | D28: 13-14 | E28: =$I$28-4 -> 82 | G28: 10 | H28: 19-20 | I28: 86 | K28: 10 | L28: 25-26 | M28: 94
B29: 44" | C29: =(G$28*0.75) -> 7.5 | D29: 15-16 | E29: =$I$28-4 -> 82 | G29: 10 | H29: 21-22 | I29: 82 | K29: 10 | L29: 27-28 | M29: 98
C30: =$G$28 -> 10 | D30: 17-18 | E30: =$I$28-4 -> 82 | G30: 10 | H30: 23-24 | I30: 86 | K30: 15 | L30: 29-30 | M30: 98
K31: 20 | L31: 31-32 | M31: 98 | N31: - | O31: 108
K32: 20 | L32: 33-34 | M32: 98 | N32: - | O32: 108
B34: Grid | C34: mAs | D34: CM | E34: kVp | G34: mAs | H34: CM | I34: kVp | K34: mAs | L34: CM | M34: kVp
A35: LATERAL Thoracic | B35: Y | C35: =($G$35*0.5) -> 12.5 | D35: 22-23 | E35: =$I$35-6 -> 80 | G35: 25 | H35: 28-29 | I35: 86 | K35: =PRODUCT($G$35,2) -> 50 | L35: 34-35 | M35: =$I$35+6 -> 92
B36: 44" | C36: =(G$35*0.75) -> 18.75 | D36: 24-25 | E36: =$I$35-6 -> 80 | G36: =PRODUCT($G$35,1.5) -> 37.5 | H36: 30-31 | I36: =$I$35 -> 86 | K36: =($G$35*3) -> 75 | L36: 36-37 | M36: =$I$35+6 -> 92
C37: =$G$35 -> 25 | D37: 26-27 | E37: =$I$35-6 -> 80 | G37: =PRODUCT($G$35,2) -> 50 | H37: 32-33 | I37: =$I$35 -> 86 | K37: =($G$35*4) -> 100 | L37: 37-39 | M37: =$I$35+6 -> 92 | N37: - | O37: =$I$35+12 -> 98
K38: =($K$37*1.5) -> 150 | L38: 40-41 | M38: =$I$35+6 -> 92 | N38: - | O38: =$I$35+12 -> 98

Sheet Cervical & Skull
C1: CHIROPRACTIC EXPOSURE CHART
A3: CERVICAL SPINE | C3: Small | G3: Medium | K3: Large
A4: Body Part | B4: Grid | C4: mAs | D4: CM | E4: kVp | G4: mAs | H4: CM | I4: kVp | K4: mAs | L4: CM | M4: kVp
A5: AP/Oblq Cervical/ | B5: Y | C5: =($G$5*0.5) -> 4 | D5: 4-5 | E5: =$I$5-4 -> 76 | G5: 8 | H5: 10-11 | I5: 80 | K5: =($G$5*2) -> 16 | L5: 16-17 | M5: =$I$5+6 -> 86
B6: 44" | C6: =(G$5*0.75) -> 6 | D6: 6-7 | E6: =$I$5-4 -> 76 | G6: =PRODUCT($G$5,1.5) -> 12 | H6: 12-13 | I6: =$I$5 -> 80 | K6: =($G$5*3) -> 24 | L6: 18-19 | M6: =$I$5+6 -> 86
C7: =$G$5 -> 8 | D7: 8-9 | E7: =$I$5-4 -> 76 | G7: =PRODUCT($G$5,2) -> 16 | H7: 14-15 | I7: =$I$5 -> 80 | K7: =($G$5*4) -> 32 | L7: 20-21 | M7: =$I$5+6 -> 86
B9: Grid | C9: mAs | D9: CM | E9: kVp | G9: mAs | H9: CM | I9: kVp | K9: mAs | L9: CM | M9: kVp
A10: LATERAL Cervical | B10: Y | C10: Same | E10: Increase 4 | G10: Same | I10: Increase 4 | K10: Same | M10: Increase 4
B11: 44"
C13: Small | G13: Medium | K13: Large
B14: Grid | C14: mAs | D14: CM | E14: kVp | G14: mAs | H14: CM | I14: kVp | K14: mAs | L14: CM | M14: kVp
A15: LATERAL Cervical | B15: Y | C15: =($G$15*0.5) -> 10 | D15: 4-5 | E15: =$I$15-4 -> 76 | G15: 20 | H15: 10-11 | I15: 80 | K15: =PRODUCT($G$15,2) -> 40 | L15: 16-17 | M15: =$I$15+6 -> 86
A16: at 72" Distance | B16: 72" | C16: =(G$15*0.75) -> 15 | D16: 6-7 | E16: =$I$15-4 -> 76 | G16: =PRODUCT($G$15,1.5) -> 30 | H16: 12-13 | I16: =$I$15 -> 80 | K16: =($G$15*3) -> 60 | L16: 18-19 | M16: =$I$15+6 -> 86
A17: with grid | C17: =$G$15 -> 20 | D17: 8-9 | E17: =$I$15-4 -> 76 | G17: =PRODUCT($G$15,2) -> 40 | H17: 14-15 | I17: =$I$15 -> 80 | K17: =($G$15*4) -> 80 | L17: 20-21 | M17: =$I$15+6 -> 86
A21: SKULL | C21: Small | G21: Medium | K21: Large
A22: Body Part | B22: Grid | C22: mAs | D22: CM | E22: kVp | G22: mAs | H22: CM | I22: kVp | K22: mAs | L22: CM | M22: kVp
A23: PA/Nasium | B23: Y | G23: 20 | H23: 19-20 | I23: 80
B24: 44"
B26: Grid | C26: mAs | D26: CM | E26: kVp | G26: mAs | H26: CM | I26: kVp | K26: mAs | L26: CM | M26: kVp
A27: Lateral | B27: Y | G27: 10 | H27: 15-16 | I27: 70-76
B28: 44"
B30: Grid | C30: mAs | D30: CM | E30: kVp | G30: mAs | H30: CM | I30: kVp | K30: mAs | L30: CM | M30: kVp
A31: BP or Vertex | B31: Y | G31: 25 | I31: 80
B32: 44"

Sheet Extremities
C1: CHIROPRACTIC EXPOSURE CHART
A3: HIP/PELVIS | C3: Small | G3: Medium | K3: Large
B4: Grid | C4: mAs | D4: CM | E4: kVp | G4: mAs | H4: CM | I4: kVp | L4: mAs | N4: CM | O4: kVp
A5: AP Hip/Pelvis | B5: Y | C5: =($G$5*0.5) -> 10 | D5: 13-14 | E5: =$I$5-6 -> 76 | G5: 20 | H5: 19-20 | I5: 82 | L5: =$G$5*2 -> 40 | N5: 25-26 | O5: =$I$5+6 -> 88
B6: 44" | C6: =(G$5*0.75) -> 15 | D6: 15-16 | E6: =$I$5-6 -> 76 | G6: =PRODUCT($G$5,1.5) -> 30 | H6: 21-22 | I6: =$I$5 -> 82 | L6: =$G$5*3 -> 60 | N6: 27-28 | O6: =$I$5+6 -> 88
C7: =$G$5 -> 20 | D7: 17-18 | E7: =$I$5-6 -> 76 | G7: =PRODUCT($G$5,2) -> 40 | H7: 23-24 | I7: =$I$5 -> 82 | L7: =$G$5*4 -> 80 | N7: 29-30 | O7: =$I$5+6 -> 88
A9: KNEE | C9: Small | G9: Medium | K9: Large
A10: AP/Oblq Knee | B10: Grid | C10: mAs | D10: CM | E10: kVp | G10: mAs | H10: CM | I10: kVp | K10: mAs | N10: CM | O10: kVp
B11: Y | C11: =($G$11*0.75) -> 6.75 | D11: 7-8 | E11: =$I$11-4 -> 66 | G11: 9 | H11: 11-12 | I11: 70 | K11: =($G$11*2) -> 18 | N11: 15-16 | O11: =$I$11 -> 70
B12: 44" | C12: =($G$11) -> 9 | D12: 9-10 | E12: =$I$11-4 -> 66 | G12: =PRODUCT($G$11,1.5) -> 13.5 | H12: 13-14 | I12: =$I$11 -> 70 | K12: =($K$11*1.5) -> 27 | N12: 17-18 | O12: =$I$11 -> 70
A14: Lateral Knee | E14: Decrease 4 kVp | I14: Decrease 4 kVp | O14: Decrease 4 kVp
A16: LOWER LEG | C16: Small | G16: Medium | K16: Large
A17: AP/Lateral | B17: Grid | C17: mAs | D17: CM | E17: kVp | G17: mAs | H17: CM | I17: kVp | K17: mAs | N17: CM | O17: kVp
B18: Y | C18: =($G$18*0.75) -> 3.75 | D18: 5-6 | E18: =$I$18-4 -> 66 | G18: 5 | H18: 9-10 | I18: 70 | K18: =PRODUCT($G$18,1.5) -> 7.5 | N18: 13-14 | O18: =$I$18+4 -> 74
B19: 44" | C19: =(G$18) -> 5 | D19: 7-8 | E19: =$I$18-4 -> 66 | G19: =PRODUCT($G$18,1.5) -> 7.5 | H19: 11-12 | I19: =$I$18 -> 70 | K19: =PRODUCT($K$18,1.5) -> 11.25 | N19: 15-16 | O19: =$I$18+4 -> 74
A22: FOOT/ANKLE | C22: Small | G22: Medium | K22: Large
A23: Ankle | B23: Grid | C23: mAs | D23: CM | E23: kVp | G23: mAs | H23: CM | I23: kVp | K23: mAs | N23: CM | O23: kVp
A24: AP/Oblq | B24: Y | C24: =PRODUCT($G$24) -> 3 | D24: 5-6 | E24: =$I$24-4 -> 56 | G24: 3 | H24: 7-8 | I24: 60 | K24: =$G$24*1.5 -> 4.5 | N24: 11-12 | O24: =$I$24+4 -> 64
B25: 44" | G25: =$G$24*1.5 -> 4.5 | H25: 9-10 | I25: =$I$24 -> 60 | K25: =$K$24*1.5 -> 6.75 | N25: 13-14 | O25: =$I$24+4 -> 64
A26: Lateral | E26: Decrease 4 kVp | I26: Decrease 4 kVp | O26: Decrease 4 kVp
A28: Foot | B28: Grid | C28: mAs | D28: CM | E28: kVp | G28: mAs | H28: CM | I28: kVp | K28: mAs | N28: CM | O28: kVp
A29: AP Foot | B29: Y | C29: =$G$29 -> 2 | D29: 4-5 | E29: =$I$29-4 -> 56 | G29: 2 | H29: 6-7 | I29: 60 | K29: =PRODUCT($G$29,1.5) -> 3 | N29: 10-11 | O29: =$I$29+4 -> 64
B30: 44" | G30: =$G$29*1.5 -> 3 | H30: 8-9 | I30: =$I$29 -> 60 | K30: =PRODUCT($G$29,2) -> 4 | N30: 12-13 | O30: =$I$29+4 -> 64
A31: Oblq Foot | E31: =$E$29+4 -> 60 | I31: =$I$29+4 -> 64 | O31: =$O$29+4 -> 68
A32: Lateral Foot | C32: =$C$29*1.33 -> 2.66 | E32: =$E$29+4 -> 60 | G32: =$G$29*1.33 -> 2.66 | I32: =$I$29+4 -> 64 | K32: =$K$29*1.33 -> 3.99 | O32: =$O$29+4 -> 68
A34: SHOULDER GIRDLE | C34: Small | G34: Medium | K34: Large
B35: Grid | C35: mAs | D35: CM | E35: kVp | G35: mAs | H35: CM | I35: kVp | K35: mAs | N35: CM | O35: kVp
A36: AP Shoulder/Clavicle | B36: Y | C36: =($G$36*0.5) -> 5 | D36: 6-7 | E36: =$I$36-4 -> 72 | G36: 10 | H36: 12-13 | I36: 76 | K36: =PRODUCT($G$36,2) -> 20 | N36: 18-19 | O36: =$I$36+4 -> 80
B37: 44" | C37: =(G$36*0.75) -> 7.5 | D37: 8-9 | E37: =$I$36-4 -> 72 | G37: =PRODUCT($G$36,1.5) -> 15 | H37: 14-15 | I37: =$I$36 -> 76 | K37: =($K$36*1.5) -> 30 | N37: 20-21 | O37: =$I$36+4 -> 80
C38: =$G$36 -> 10 | D38: 10-11 | E38: =$I$36-4 -> 72 | G38: =PRODUCT($G$36,2) -> 20 | H38: 16-17 | I38: =$I$36 -> 76 | K38: =($K$36*2) -> 40 | N38: 22-23 | O38: =$I$36+4 -> 80
A40: FOREARM/ELBOW | C40: Small | G40: Medium | K40: Large
A41: AP Forearm & Elbow | B41: Grid | C41: mAs | D41: CM | E41: kVp | G41: mAs | H41: CM | I41: kVp | K41: mAs | N41: CM | O41: kVp
A42: (as measured) | B42: Y | C42: =$G$42*0.75 -> 2.4 | D42: 2-3 | E42: =$I$42-4 -> 62 | G42: 3.2 | H42: 6-7 | I42: 66 | K42: =$G$42*2 -> 6.4 | N42: 10-11 | O42: =+$I$42 -> 66
B43: 44" | C43: =$G$42 -> 3.2 | D43: 4-5 | E43: =$I$42-4 -> 62 | G43: =PRODUCT($G$42,1.5) -> 4.8 | H43: 8-9 | I43: =+$I$42 -> 66 | K43: =$G$42*3 -> 9.6 | N43: 12-13 | O43: =+$I$42 -> 66
A44: Lateral Forearm & Elbow | E44: Increase 4 kVp | I44: Increase 4 kVp | O44: Increase 4 kVp
A46: Wrist/Hand | C46: Small | G46: Medium | K46: Large
A47: PA Hand/Wrist | B47: Grid | C47: mAs | D47: CM | E47: kVp | G47: mAs | H47: CM | I47: kVp | K47: mAs | N47: CM | O47: kVp
A48: (as measured) | B48: Y | C48: =$G$48 -> 2 | D48: ≤2 | E48: =+$I$48-4 -> 56 | G48: 2 | H48: 3-4 | I48: 60 | K48: =$G$48*2 -> 4 | N48: 7-8 | O48: =+$I$48 -> 60
B49: 44" | G49: =PRODUCT($G$48,1.5) -> 3 | H49: 5-6 | I49: =+$I$48 -> 60 | K49: =$G$48*3 -> 6 | N49: 9-10 | O49: =+$I$48 -> 60
A51: Lateral Hand/Wrist | C51: Same | E51: Increase 4 kVp | G51: Same | I51: Increase 4 kVp | K51: Same | O51: Increase 4 kVp

Sheet Chest
C1: CHIROPRACTIC EXPOSURE CHART
A3: CHEST | C3: Small | G3: Medium | K3: Large
A4: Body Part | B4: Grid | C4: mAs | D4: CM | E4: kVp | G4: mAs | H4: CM | I4: kVp | K4: mAs | L4: CM | M4: kVp
A5: PA Chest | B5: Y | C5: 3 | D5: 14-15 | E5: 85 | G5: 4 | H5: 20-21 | I5: 100 | K5: 6 | L5: 26-27 | M5: 110
B6: 72" | C6: =($C$5*1.5) -> 4.5 | D6: 16-17 | E6: 85 | G6: =PRODUCT($G$5,1.5) -> 6 | H6: 22-23 | I6: 100 | K6: =($K$5*1.5) -> 9 | L6: 28-29 | M6: =$M$5 -> 110
C7: 8 | D7: 18-19 | E7: 85 | G7: =PRODUCT($G$5,2) -> 8 | H7: 24-25 | I7: 100 | K7: =($K$5*2) -> 12 | L7: 30-31 | M7: =$M$5 -> 110
K8: =($K$5*3) -> 18 | L8: 32-33 | M8: =$M$5 -> 110
K9: =($K$5*4) -> 24 | L9: 34-35 | M9: =$M$5 -> 110
B11: Grid | C11: mAs | D11: CM | E11: kVp | G11: mAs | H11: CM | I11: kVp | K11: mAs | L11: CM | M11: kVp
A12: Lateral Chest | B12: Y | C12: Increase PA | E12: Increase | G12: Increase PA | I12: Increase | K12: Increase PA | M12: Increase
B13: 72" | C13: 1 | E13: 10 kVp | G13: 1 | I13: 10 kVp | K13: 1 | M13: 10 kVp
